Cogmind - Beta 17 @@@ ROGUE MODE // 2026.07.15 @ 21:53:30 Player: Akl Result: Destroyed by Y-45 Defender with Heavy Assault Rifle Performance ------------- Evolutions (2) 1000 Regions Visited (3) 600 Robots Destroyed (18) 90 Value Destroyed (742) 742 Prototype IDs (0) 0 Alien Tech Used (0) 0 Bonus (0) 0 TOTAL SCORE: 2432 Bonus ------- None Cogmind --------- Core Integrity 0/550 Matter 295/300 Energy 86/100 System Corruption 2% Temperature Cool (27) Movement Core (50) Location -8/Materials Parts ------- > --- POWER (1) -------- (None) > --- PROPULSION (4) --- (None) > --- UTILITY (3) ------ Machine Analyzer > --- WEAPON (3) ------- (None) > --- INVENTORY (5) ---- Heat Sink Weight Redist. System Targeting Computer Improved Weapon Shielding Hacking Suite Peak State ------------ > --- POWER ------------ Light Nuclear Core > --- PROPULSION ------- Aluminum Leg Aluminum Leg Aluminum Leg Compact Wheel > --- UTILITY ---------- Small Storage Unit Machine Analyzer Core Shielding > --- WEAPON ----------- Heavy Assault Rifle Makeshift Sword > --- INVENTORY -------- Light Nuclear Core Heat Sink Targeting Computer Improved Weapon Shielding Hacking Suite [Rating: 19] Favorites ----------- Power Light Ion Engine Engine Light Ion Engine Power Core Light Nuclear Core Propulsion Aluminum Leg Leg Aluminum Leg Wheel Compact Wheel Utility Small Storage Unit Storage Small Storage Unit Processor Machine Analyzer Protection Core Shielding Weapon Assault Rifle Energy Cannon EM Pulse Cannon Ballistic Gun Assault Rifle Slashing Weapon Makeshift Sword Build | -11 -10 -10 -8 ------- Run | Yrd Mat Sub Mat Slots Evolved 4 | . . . 4 Power . | . . . . Propulsion 2 | . . . 2 Utility 1 | . . . 1 Weapon 1 | . . . 1 Parts Attached 24 | 6 . 2 16 Power 4 | 1 . . 3 Engine 2 | 1 . . 1 Core 2 | . . . 2 Reactor . | . . . . Propulsion 12 | 2 . . 10 Treads . | . . . . Leg 11 | 2 . . 9 Wheel 1 | . . . 1 Hover . | . . . . Flight . | . . . . Utility 3 | 1 . 1 1 Device . | . . . . Storage 1 | 1 . . . Processor 1 | . . 1 . Hackware . | . . . . Protection 1 | . . . 1 Artifact . | . . . . Weapon 5 | 2 . 1 2 Energy Gun . | . . . . Energy Cannon 1 | . . . 1 Ballistic Gun 3 | 2 . . 1 Ballistic Cannon . | . . . . Launcher . | . . . . Special Weapon . | . . . . Impact Weapon . | . . . . Slashing Weapon 1 | . . 1 . Piercing Weapon . | . . . . Special Melee Weapon . | . . . . Unidentified Prototypes . | . . . . Parts Lost 20 | . . . 20 Power 3 | . . . 3 Propulsion 10 | . . . 10 Utility 2 | . . . 2 Weapon 5 | . . . 5 Highest Loss Streak 15 | . . . 15 To Critical Strikes . | . . . . Average Backups 4 | 1 3 4 4 Power . | . 1 1 . Propulsion . | . 1 1 . Utility 2 | . 1 2 3 Weapon . | . . . . Tool/Special . | . . . . Unused Backups 6 | . . . 6 Power 1 | . . . 1 Propulsion . | . . . . Utility 5 | . . . 5 Weapon . | . . . . Tool/Special . | . . . . Average Slot Usage (%) 79 | . 85 98 67 Engine 9 | . 14 14 5 Leg 21 | . 28 28 16 Wheel 1 | . . . 1 Storage 11 | . 14 14 8 Processor 8 | . . 12 9 Protection 3 | . . . 7 Ballistic Gun 17 | . 28 27 9 Slashing Weapon 3 | . . . 6 Peak Build Rating 19 | 6 6 12 19 Average Rating 10 | 4 6 8 13 On Entrance 6 | . 6 6 12 Avg Prop Armor Cover (%) 2 | . . . 2 Naked Turns . | . . . . Heaviest Build 17 | 12 12 12 17 Greatest Support 60 | 20 20 20 60 Greatest Overweight (x) 4 | 2 . . 4 Average Overweight (x) . | . . . . Largest Inventory Capacity 8 | 8 8 8 8 Average Capacity 7 | 6 8 8 7 Most Carried 6 | 2 4 5 6 Average Carried 4 | 1 3 4 4 Final Capacity 8 | 8 8 8 5 Final Carried 5 | 2 4 5 5 Class Distribution -------------------- 78% | Mutant 21% | Scavenger-Mutant Dominant Class ---------------- Mutant | -10/Materials Mutant | -10/Subcaves Mutant | -8/Materials Resources | -11 -10 -10 -8 ----------- Run | Yrd Mat Sub Mat Matter Collected 442 | 206 . 88 148 Remotely . | . . . . Salvage Created 892 | . . 108 784 Parts 39 | . . 1 38 Haulers Intercepted . | . . . . Recyclers Shooed . | . . . . Parts Field Recycled . | . . . . Retrieved Matter . | . . . . Parts Self-Destructed 3 | . . 3 . Prevented . | . . . . Parts Restored . | . . . . Kills | -11 -10 -10 -8 ------- Run | Yrd Mat Sub Mat Combat Hostiles Destroyed 16 | . . 2 14 Melee 13 | . . . 13 Guns 2 | . . 2 . Cannons 1 | . . . 1 Classes Destroyed 3 | . . 1 2 Worker 2 | . . . 2 Grunt 15 | . . 2 13 Sentry 1 | . . . 1 Best Kill Streak 10 | . . 2 10 Combat Bots Only 6 | . . 2 6 Max Kills in Single Turn 1 | . . 1 1 Gunslinging . | . . . . Exploded . | . . . . Melee 1 | . . . 1 Uniques/NPCs Destroyed . | . . . . Combat | -11 -10 -10 -8 -------- Run | Yrd Mat Sub Mat Hostile Shots Fired 249 | . . 12 237 Missed 69 | . . 2 67 Hits 180 | . . 10 170 Projectile 180 | . . 10 170 Critical Strikes 7 | . . . 7 Damage Taken 2486 | . . 118 2368 Core 575 | . . 23 552 Absorbed by Shields . | . . . . Redirected to Shielding 50 | . . . 50 Core Remaining (%) 95 | 100 . 90 . Volleys Fired 12 | . . 5 7 Largest 2 | . . 2 2 Hottest 63 | . . 40 63 Shots Fired 18 | . . 10 8 Gun 15 | . . 10 5 Cannon 3 | . . . 3 Launcher . | . . . . Special . | . . . . Kinetic 15 | . . 10 5 Thermal . | . . . . Explosive . | . . . . Electromagnetic 3 | . . . 3 Robot Hit Streak 5 | . . 3 5 Robot Miss Streak 2 | . . 1 2 Penetration Max . | . . . . Secondary Targets 1 | . . 1 . Max Gunslinging Chain 1 | . . 1 . Shots Hit Robots 44 | . . 5 39 Core Hits 23 | . . 4 19 Critical Kills . | . . . . Critical Parts Destroyed . | . . . . Critical Strikes 1 | . . . 1 Sever 1 | . . . 1 Melee Attacks 58 | . . . 58 Impact . | . . . . Slashing 58 | . . . 58 Piercing . | . . . . Sneak Attacks 3 | . . . 3 Combat Hostiles . | . . . . Follow-up Attacks . | . . . . Damage Inflicted 1496 | . . 62 1434 Guns 104 | . . 62 42 Cannons 83 | . . . 83 Explosions . | . . . . Melee 1274 | . . . 1274 Ramming 35 | . . . 35 Kinetic 104 | . . 62 42 Thermal . | . . . . Explosive . | . . . . Electromagnetic 83 | . . . 83 Impact . | . . . . Slashing 1274 | . . . 1274 Piercing . | . . . . Highest Corruption 2 | . . . 2 Average Corruption 2 | . . . 2 Corruption Purged . | . . . . Corruption Blocked . | . . . . Effects 2 | . . . 2 Message Errors 1 | . . . 1 Matter Fused 1 | . . . 1 Overload Shots . | . . . . Overflow Damage 39 | . . . 39 Projectiles . | . . . . Explosions . | . . . . Melee 39 | . . . 39 Knockbacks . | . . . . Impact . | . . . . Kinetic . | . . . . Secondary . | . . . . Self-Inflicted Damage 4 | . . . 4 Shots . | . . . . Rammed 2 | . . . 2 Targets Rammed 16 | . . . 16 Kicked 14 | . . . 14 Crushed . | . . . . Highest Temperature 46 | . . . 46 Average Temperature 16 | . . . 16 Received Heat Transfer 1281 | . . 75 1206 Siege Activations . | . . . . Martial Activations . | . . . . Shielding Activations . | . . . . Robots Disrupted . | . . . . Combat Hostiles . | . . . . Robots Corrupted . | . . . . Combat Hostiles . | . . . . Parts Fried . | . . . . Impact Corruptions . | . . . . Robots Melted . | . . . . Combat Hostiles . | . . . . Parts Melted . | . . . . Heat Transferred . | . . . . Parts Sabotaged . | . . . . Parts Stolen . | . . . . Parts Stripped . | . . . . Power Chain Reactions . | . . . . Alert | -11 -10 -10 -8 ------- Run | Yrd Mat Sub Mat Maximum Alert Level . | . . . . Low Security (%) 100 | 100 100 . 100 Level 1 . | . . . . Level 2 . | . . . . Level 3 . | . . . . Level 4 . | . . . . Level 5 . | . . . . High Security . | . . . . Max Security . | . . . . Peak Influence 175 | . . . 175 Initial . | . . . . Average 55 | . . . 73 Influence Increases 435 | . . 50 385 Destroy 0b10 Robot/C 320 | . . 40 280 Destroy 0b10 Robot/NC 10 | . . . 10 Destroy Leader 60 | . . 10 50 Lose Combat Pursuer 45 | . . . 45 Influence Decreases 422 | . . 50 372 Time Decay 222 | . . 50 172 Lost Part 200 | . . . 200 Squads Dispatched 3 | . . . 3 Investigation 1 | . . . 1 Extermination . | . . . . Reinforcement 2 | . . . 2 Assault . | . . . . Garrison . | . . . . Intercept . | . . . . Searches Triggered . | . . . . Construction Impeded . | . . . . Haulers Reinforced . | . . . . Active Scanning Responses . | . . . . Cargo Convoy Interrupts . | . . . . Stealth | -11 -10 -10 -8 --------- Run | Yrd Mat Sub Mat Distress Signals 5 | . . . 5 Communications Jammed . | . . . . Distress Signals . | . . . . Times Spotted 39 | . 1 2 36 Peak Tracking Total 14 | . 1 2 14 Tactical Retreats 2 | . . . 2 Traps | -11 -10 -10 -8 ------- Run | Yrd Mat Sub Mat Traps Triggered . | . . . . Indirectly . | . . . . Trap Hack Attempts . | . . . . Triggered . | . . . . Disarmed . | . . . . Reprogrammed . | . . . . Reused . | . . . . Traps Extracted . | . . . . Installed . | . . . . Triggered . | . . . . Machines | -11 -10 -10 -8 ---------- Run | Yrd Mat Sub Mat Machines Disabled . | . . . . Max in Single Turn . | . . . . Machines Repaired . | . . . . Machines Dismantled . | . . . . Machines Sabotaged . | . . . . Overloaded Fab Kills . | . . . . Hacking | -11 -10 -10 -8 --------- Run | Yrd Mat Sub Mat Machines Accessed 2 | . . . 2 Terminals 1 | . . . 1 Fabricators . | . . . . Repair Stations . | . . . . Recycling Units . | . . . . Scanalyzers 1 | . . . 1 Garrison Access . | . . . . Total Hacks 5 | . . . 5 Successful 4 | . . . 4 Failed 1 | . . . 1 Catastrophic . | . . . . Database Lockouts . | . . . . Manual . | . . . . Terminals 2 | . . . 2 Fabricators . | . . . . Repair Stations . | . . . . Recycling Units . | . . . . Scanalyzers 3 | . . . 3 Garrison Access . | . . . . Terminal Hacks 1 | . . . 1 Record 1 | . . . 1 Fabricator Hacks . | . . . . Repair Station Hacks . | . . . . Recycling Unit Hacks . | . . . . Scanalyzer 3 | . . . 3 Insert Component 2 | . . . 2 Analyze 1 | . . . 1 Garrison Access Hacks . | . . . . Unauthorized Hacks . | . . . . Terminals . | . . . . Fabricators . | . . . . Repair Stations . | . . . . Recycling Units . | . . . . Scanalyzers . | . . . . Garrison Access . | . . . . Data Cores Recovered . | . . . . Used . | . . . . Hacking Detections 2 | . . . 2 Full Trace Events 1 | . . . 1 Feedback Events . | . . . . Feedback Blocked . | . . . . Robot Schematics Acquired . | . . . . Robots Built . | . . . . Authchips . | . . . . Time . | . . . . Total Robot Build Rating . | . . . . Part Schematics Acquired 1 | . . . 1 Parts Built . | . . . . Authchips . | . . . . Time . | . . . . Total Part Build Rating . | . . . . Part Studies Acquired . | . . . . Parts Repaired . | . . . . Time . | . . . . Parts Recycled . | . . . . Recycled Matter . | . . . . Retrieved Matter . | . . . . Retrieved Components . | . . . . Parts Scanalyzed 1 | . . . 1 Part Schematics Acquired 1 | . . . 1 Parts Damaged . | . . . . Bothacking | -11 -10 -10 -8 ------------ Run | Yrd Mat Sub Mat Used RIF Installer . | . . . . Robots Hacked . | . . . . Non-combat . | . . . . Combat . | . . . . Robot Hacks Applied . | . . . . Relay Couplers Released . | . . . . Fabnet Peak Effective % . | . . . . Robots Rewired . | . . . . Allies Hacked . | . . . . Hacks Repelled . | . . . . Allies | -11 -10 -10 -8 -------- Run | Yrd Mat Sub Mat Total Allies . | . . . . Largest Group . | . . . . Highest-Rated Group . | . . . . Highest-Rated Ally . | . . . . Total Orders . | . . . . Ally Attacks . | . . . . Total Damage . | . . . . Kills . | . . . . Allies Corrupted . | . . . . Allies Melted . | . . . . Intel | -11 -10 -10 -8 ------- Run | Yrd Mat Sub Mat Active Infowar (turns) 702 | . . 238 464 Machine Analysis 702 | . . 238 464 Robot Analysis Total . | . . . . Derelict Logs Recovered . | . . . . Drone Launches . | . . . . Drone Recoveries . | . . . . Exploration | -11 -10 -10 -8 ------------- Run | Yrd Mat Sub Mat Turns Passed 877 | 57 99 257 464 Spaces Moved 505 | 41 63 188 213 Core 33 | 8 . . 25 Treads . | . . . . Legs 472 | 33 63 188 188 Wheels . | . . . . Hover . | . . . . Flight . | . . . . Fastest Speed 50 | 50 120 120 100 Average Speed 122 | 112 120 120 126 Slowest Speed 250 | 150 120 120 250 Overloaded Moves . | . . . . Propulsion Burnouts . | . . . . Robots Hopped . | . . . . Potential Cave-ins . | . . . . Cave-ins Triggered . | . . . . Exploration Rate (%) 12 | 3 8 11 27 Regions Visited 3 Branch Regions 1 Pre-discovered Areas . | . . . . Known Exits Taken . | . . . . Unknown Exits Taken 3 | 1 1 1 . Scrap Searched . | . . . . Spaces Dug . | . . . . Terrain Destroyed . | . . . . Melee . | . . . . Projectile . | . . . . AOE . | . . . . Terrain Rammed . | . . . . Walls Destroyed . | . . . . Machines Disabled . | . . . . Actions | -11 -10 -10 -8 --------- Run | Yrd Mat Sub Mat Total 679 | 49 86 208 336 Wait 46 | 1 22 10 13 Move 502 | 40 62 187 213 Hop . | . . . . Pick Up 12 | 2 2 2 6 Fast Attach 16 | 6 . . 10 Attach 7 | . . 1 6 Detach 1 | . . . 1 Swap 5 | . . 3 2 Drop 4 | . . . 4 Fire 12 | . . 5 7 Melee 58 | . . . 58 Ram 2 | . . . 2 Kick 14 | . . . 14 Crush . | . . . . Escape Stasis . | . . . . Rewire . | . . . . Trap . | . . . . Miscellaneous . | . . . . Route ------- -11/Scrapyard -10/Materials -10/Subcaves -8/Materials History --------- Turn | Location | Event 2 | -11/Scrapyard | Met Revision 17 21 | -11/Scrapyard | Discovered new exit (range 15) 58 | -11/Scrapyard | Entered Materials 147 | -10/Materials | Discovered new exit (range 8) 157 | -10/Materials | Entered Subcaves 158 | -10/Subcaves | Approached by a straggling Scientist 311 | -10/Subcaves | Build established: Mutant 314 | -10/Subcaves | Discovered new exit (range 5) 355 | -10/Subcaves | Shifting Twisted Machinery released Mak. Sword 414 | -10/Subcaves | Entered Materials 414 | -8/Materials | Evolved 4 slots: Propulsion x2, Utility x1, Weapon x1 643 | -8/Materials | Lost 4 parts (1p2n1w) 839 | -8/Materials | Core integrity fell below 50% 876 | -8/Materials | Core integrity fell below 20% 878 | -8/Materials | Destroyed by Y-45 Defender with Heavy Assault Rifle Last Messages --------------- 00867_ Kicked G-47 Trooper out of the way. 00868_ Carbon-fiber Leg destroyed. 00868_ Critical hit (Burn: +37). 00869_ Kicked G-50 Soldier. 00869_ Slug penetrates G-47 Trooper. 00870_ Kicked G-50 Soldier. 00870_ Carbon-fiber Leg destroyed. 00871_ Kicked G-50 Soldier. 00872_ M-13 Machinist repairs H-55 Commando. 00872_ Kicked G-50 Soldier. 00872_ Slug penetrates Wall. 00873_ Carbon-fiber Leg destroyed. 00873_ Kicked G-50 Soldier. 00875_ System corrupted: Matter fused (-10). 00875_ Kicked G-50 Soldier out of the way. 00876_ Kicked G-50 Soldier. 00877_ K-01 Serf collects debris. 00877_ Kicked G-50 Soldier. 00878_ Wall collapses. 00878_ Carbon-fiber Leg destroyed. Map ----- +----------------------------------------------------+ | ?????????????????????????????????????????????????? | | ?????????????????????????????????????????????????? | | ?????????????????????????????????????????????????? | | ?????????????????????????????????????????????????? | | ?????????????????????????????????????????????????? | | ?????????????????????????????????????????????????? | | ?????????????????????????????????????????????????? | | ?????????????????????????????????????????????????? | | ?????????????????????????????????????????????????? | | ?????????????????????????????????????????????????? | | ????????????????????????? ?????????????????????? | | ????????????????????????? #????????????????????? | | ????????????????????????? #????????????????????? | | ????????????????????????# #????????????????????? | | ????????????????????????# #????????????????????? | | ????????????????????#???# #????????????????????? | | ????????????????????? ??# #????????????????????? | | ????????????????????? ?##a ##???????????????????? | | ?????????????????????? # [ #???????????????????? | | ?????????????????????? # #???????????????????? | | ???????????????????????+ ! #???????????????????? | | ???????????????????????# #???????????????????? | | ???????????????????????? #???????????????????? | | ????????????????????????# #????????????????????? | | ????????????????????????#Yg #????????????????????? | | ????????????????#########@u #????????????????????? | | ????????????????# gggg #????????????????????? | | ????????????????# = gk;hm #????????????????????? | | ?????????"""????# #hg #????????????????????? | | ?????????"""????#########k #????????????????????? | | ?????????"""?????######## #????????????????????? | | ?????????????????# # g #????????????????????? | | ?????????????????# """ # #??"""???????????????? | | ?????????????????# "" +% a/??"""???????????????? | | ????????"""??????# """ # # ?"""???????????????? | | ????????"""??????# # # ???????????????????? | | ????????"S???????# # #?#??????????????????? | | ????????"""?????####/#### ! #????????????????????? | | ?????????""?????# # k=#????????????????????? | | ????????????????# """"[%#a= #????????????????????? | | ????????????????# """" */w ######???????????????? | | ????????????????# """" # +???????????? | | ????????????????/ # ###### #???????????? | | ???????????????##########^ #?????# #????????????? | | ?????????????????????#####+######## ############?? | | ?????????????????????# +? ??? | | ????????"""??"???????# #??# ! ##### | | ????????"""??T???????# """ #??#""" # | | ????????"""??"???????# """"" #??#"R + "T | | ?????????????????????# """"" #??#""" # | +----------------------------------------------------+ Best States ------------- Heat Dissipation 31 Energy Generation 14 Energy Capacity 160 Matter Stores 300 Matter Capacity 300 Sight Range 16 Terrain Scan Density 10 Core Shielding 20 Evasion (%) 55 Item Schematics ----------------- Aluminum Leg | -8/Materials | Scanalyzed Robot Schematics ------------------ None Fabricated ------------ Nothing Repaired ---------- Nothing Studied --------- None Alien Tech Used ----------------- None Achievements -------------- None Challenges ------------ None Game ------ Seed CompositeAlertBefriender Manual? 0 Play Time 00:17:41 Cumulative 14.7 hours Start 2026.07.15 @ 21:37:30 End 2026.07.15 @ 21:53:30 Sessions 1 Manual Loads 0 Difficulty Rogue Special Mode None Game No. 30 Rogue 30 Adventurer 0 Explorer 0 Win Type - Total 0 Types 0/0/0/0/0/0/0/0/0/0 Lore% 11 Gallery% 15 Achievement% 13 Wizard Run 0 Options --------- Layout 1 ASCII 0 Keyboard 0 Movement Mouse Keybinds 0 Fullscreen 1 Font 24/Smallcaps Map View 50x35 Zoom Use 0% Tactical HUD 1 Map Filters NONE Filters NONE Steam 1 RUN: 0cde45f8-08ff-4ab1-bf36-e0927771c9e0